{"text_format":"3","workbook":"xlsx","n_sheets":3,"sheets":["تقرير الموازنة الشهرية","المصاريف الشهرية","البيانات الإضافية"],"not_rendered":{"charts":1,"defined_names":4,"pivot_tables":2},"read":"whole","date_system":"1900"}

{"sheet":"تقرير الموازنة الشهرية","index":0,"n_rows":34,"n_cols":14,"rows_kept":34,"merged":[[7,1,10,1],[7,5,10,5],[7,6,10,6],[12,1,16,1],[12,5,16,5],[12,6,16,6]]}
[null,"نظرة عامة على الموازنة",{"$nulls":7},"ملخص الموازنة"]
[null,"الرصيد"]
[null,"الرصيد المتوقع","(الدخل المتوقع ناقص المصاريف)",{"$nulls":3},{"$f":"D17-SUM(تفاصيل_الموازنة[التكلفة المتوقعة])","v":{"v":1585,"d":"ر.س.‏ 1,585"}}]
[null,"الرصيد الفعلي ","(الدخل الفعلي ناقص المصاريف)",{"$nulls":3},{"$f":"D11-SUM(تفاصيل_الموازنة[التكلفة الفعلية])","v":{"v":1740,"d":"ر.س.‏ 1,740"}}]
[null,"الفرق","(الدخل الفعلي ناقص المتوقع)",{"$nulls":3},{"$f":"G4-G3","v":{"v":155,"d":"ر.س.‏ 155"}}]
[]
[null,"الدخل",{"$nulls":3},"المصاريف",{"$nulls":3},"انقر بزر الماوس الأيمن فوق PivotTable أدناه، ثم انقر فوق تحديث للتحديث"]
[null,"الفعلي","الدخل 1",{"v":5800,"d":"ر.س.‏ 5,800"},null,"الفعلي",{"$f":"SUM(تفاصيل_الموازنة[التكلفة الفعلية])","v":{"v":7860,"d":"ر.س.‏ 7,860"}}]
[null,null,"الدخل 2",{"v":2300,"d":"ر.س.‏ 2,300"},{"$nulls":6},"الفئة","التكلفة المتوقعة ","التكلفة الفعلية ","الفرق "]
[null,null,"الدخل الإضافي",{"v":1500,"d":"ر.س.‏ 1,500"},{"$nulls":6},"الأطفال",{"v":140,"d":"ر.س.‏ 140"},{"v":140,"d":"ر.س.‏ 140"},{"v":0,"d":"ر.س.‏ 0"}]
[null,null,"إجمالي الدخل",{"$f":"SUM(D8:D10)","v":{"v":9600,"d":"ر.س.‏ 9,600"}}]
[{"$nulls":10},"التأمين",{"v":900,"d":"ر.س.‏ 900"},{"v":900,"d":"ر.س.‏ 900"},{"v":0,"d":"ر.س.‏ 0"}]
[null,"المتوقع",{"$nulls":3},"المتوقع",{"$f":"SUM(تفاصيل_الموازنة[التكلفة المتوقعة])","v":{"v":7915,"d":"ر.س.‏ 7,915"}}]
[null,null,"الدخل 1",{"v":6000,"d":"ر.س.‏ 6,000"},{"$nulls":6},"الترفيه",{"v":400,"d":"ر.س.‏ 400"},{"v":358,"d":"ر.س.‏ 358"},{"v":42,"d":"ر.س.‏ 42"}]
[null,null,"الدخل 2",{"v":1000,"d":"ر.س.‏ 1,000"}]
[null,null,"الدخل الإضافي",{"v":2500,"d":"ر.س.‏ 2,500"},{"$nulls":6},"الحيوانات الأليفة",{"v":170,"d":"ر.س.‏ 170"},{"v":100,"d":"ر.س.‏ 100"},{"v":70,"d":"ر.س.‏ 70"}]
[null,null,"إجمالي الدخل",{"$f":"SUM(D14:D16)","v":{"v":9500,"d":"ر.س.‏ 9,500"}}]
[{"$nulls":10},"الرعاية الشخصية",{"v":150,"d":"ر.س.‏ 150"},{"v":140,"d":"ر.س.‏ 140"},{"v":10,"d":"ر.س.‏ 10"}]
[]
[{"$nulls":10},"السكن",{"v":2830,"d":"ر.س.‏ 2,830"},{"v":2702,"d":"ر.س.‏ 2,702"},{"v":128,"d":"ر.س.‏ 128"}]
[]
[{"$nulls":10},"الضرائب",{"v":300,"d":"ر.س.‏ 300"},{"v":300,"d":"ر.س.‏ 300"},{"v":0,"d":"ر.س.‏ 0"}]
[]
[{"$nulls":10},"الطعام",{"v":1100,"d":"ر.س.‏ 1,100"},{"v":1320,"d":"ر.س.‏ 1,320"},{"v":-220,"d":"ر.س.‏ 220-"}]
[]
[{"$nulls":10},"القروض",{"v":200,"d":"ر.س.‏ 200"},{"v":200,"d":"ر.س.‏ 200"},{"v":0,"d":"ر.س.‏ 0"}]
[]
[{"$nulls":10},"المدخرات أو الاستثمارات",{"v":200,"d":"ر.س.‏ 200"},{"v":200,"d":"ر.س.‏ 200"},{"v":0,"d":"ر.س.‏ 0"}]
[]
[{"$nulls":10},"هدايا وأعمال خيرية",{"v":100,"d":"ر.س.‏ 100"},{"v":125,"d":"ر.س.‏ 125"},{"v":-25,"d":"ر.س.‏ 25-"}]
[]
[{"$nulls":10},"وسائل النقل",{"v":1425,"d":"ر.س.‏ 1,425"},{"v":1375,"d":"ر.س.‏ 1,375"},{"v":50,"d":"ر.س.‏ 50"}]
[]
[{"$nulls":10},"الإجمالي الكلي",{"v":7915,"d":"ر.س.‏ 7,915"},{"v":7860,"d":"ر.س.‏ 7,860"},{"v":55,"d":"ر.س.‏ 55"}]

{"sheet":"المصاريف الشهرية","index":1,"n_rows":62,"n_cols":7,"rows_kept":62}
[null,"المصاريف الشهرية"]
[null,"الوصف","الفئة","التكلفة المتوقعة","التكلفة الفعلية","الفرق","نظرة عامة على التكلفة الفعلية"]
[null,"أنشطة خارج المنهج الدراسي","الأطفال",{"v":40,"d":"ر.س.‏ 40"},{"v":40,"d":"ر.س.‏ 40"},{"$f":"تفاصيل_الموازنة[[#This Row],[التكلفة المتوقعة]]-تفاصيل_الموازنة[[#This Row],[التكلفة الفعلية]]","v":{"v":0,"d":"ر.س.‏ 0"}},{"$f":"تفاصيل_الموازنة[[#This Row],[التكلفة الفعلية]]","v":{"v":40,"d":"ر.س.‏ 40"}}]
[null,"لوازم طبية","الأطفال",null,null,{"$f":"تفاصيل_الموازنة[[#This Row],[التكلفة المتوقعة]]-تفاصيل_الموازنة[[#This Row],[التكلفة الفعلية]]","v":{"v":0,"d":"ر.س.‏ 0"}},{"$f":"تفاصيل_الموازنة[[#This Row],[التكلفة الفعلية]]","v":{"v":0,"d":"ر.س.‏ 0"}}]
[null,"مستلزمات المدرسة","الأطفال",null,null,{"$f":"تفاصيل_الموازنة[[#This Row],[التكلفة المتوقعة]]-تفاصيل_الموازنة[[#This Row],[التكلفة الفعلية]]","v":{"v":0,"d":"ر.س.‏ 0"}},{"$f":"تفاصيل_الموازنة[[#This Row],[التكلفة الفعلية]]","v":{"v":0,"d":"ر.س.‏ 0"}}]
[null,"الرسوم الدراسية","الأطفال",{"v":100,"d":"ر.س.‏ 100"},{"v":100,"d":"ر.س.‏ 100"},{"$f":"تفاصيل_الموازنة[[#This Row],[التكلفة المتوقعة]]-تفاصيل_الموازنة[[#This Row],[التكلفة الفعلية]]","v":{"v":0,"d":"ر.س.‏ 0"}},{"$f":"تفاصيل_الموازنة[[#This Row],[التكلفة الفعلية]]","v":{"v":100,"d":"ر.س.‏ 100"}}]
[null,"الحفلات الموسيقية","الترفيه",{"v":50,"d":"ر.س.‏ 50"},{"v":40,"d":"ر.س.‏ 40"},{"$f":"تفاصيل_الموازنة[[#This Row],[التكلفة المتوقعة]]-تفاصيل_الموازنة[[#This Row],[التكلفة الفعلية]]","v":{"v":10,"d":"ر.س.‏ 10"}},{"$f":"تفاصيل_الموازنة[[#This Row],[التكلفة الفعلية]]","v":{"v":40,"d":"ر.س.‏ 40"}}]
[null,"المسرح المباشر","الترفيه",{"v":200,"d":"ر.س.‏ 200"},{"v":150,"d":"ر.س.‏ 150"},{"$f":"تفاصيل_الموازنة[[#This Row],[التكلفة المتوقعة]]-تفاصيل_الموازنة[[#This Row],[التكلفة الفعلية]]","v":{"v":50,"d":"ر.س.‏ 50"}},{"$f":"تفاصيل_الموازنة[[#This Row],[التكلفة الفعلية]]","v":{"v":150,"d":"ر.س.‏ 150"}}]
[null,"الأفلام","الترفيه",{"v":50,"d":"ر.س.‏ 50"},{"v":28,"d":"ر.س.‏ 28"},{"$f":"تفاصيل_الموازنة[[#This Row],[التكلفة المتوقعة]]-تفاصيل_الموازنة[[#This Row],[التكلفة الفعلية]]","v":{"v":22,"d":"ر.س.‏ 22"}},{"$f":"تفاصيل_الموازنة[[#This Row],[التكلفة الفعلية]]","v":{"v":28,"d":"ر.س.‏ 28"}}]
[null,"الموسيقى (أقراص مضغوطة، تنزيلات، إلخ)","الترفيه",{"v":50,"d":"ر.س.‏ 50"},{"v":30,"d":"ر.س.‏ 30"},{"$f":"تفاصيل_الموازنة[[#This Row],[التكلفة المتوقعة]]-تفاصيل_الموازنة[[#This Row],[التكلفة الفعلية]]","v":{"v":20,"d":"ر.س.‏ 20"}},{"$f":"تفاصيل_الموازنة[[#This Row],[التكلفة الفعلية]]","v":{"v":30,"d":"ر.س.‏ 30"}}]
[null,"الأحداث الرياضية","الترفيه",{"v":0,"d":"ر.س.‏ 0"},{"v":40,"d":"ر.س.‏ 40"},{"$f":"تفاصيل_الموازنة[[#This Row],[التكلفة المتوقعة]]-تفاصيل_الموازنة[[#This Row],[التكلفة الفعلية]]","v":{"v":-40,"d":"ر.س.‏ 40-"}},{"$f":"تفاصيل_الموازنة[[#This Row],[التكلفة الفعلية]]","v":{"v":40,"d":"ر.س.‏ 40"}}]
[null,"فيديو/DVD (شراء)","الترفيه",{"v":20,"d":"ر.س.‏ 20"},{"v":50,"d":"ر.س.‏ 50"},{"$f":"تفاصيل_الموازنة[[#This Row],[التكلفة المتوقعة]]-تفاصيل_الموازنة[[#This Row],[التكلفة الفعلية]]","v":{"v":-30,"d":"ر.س.‏ 30-"}},{"$f":"تفاصيل_الموازنة[[#This Row],[التكلفة الفعلية]]","v":{"v":50,"d":"ر.س.‏ 50"}}]
[null,"فيديو/DVD (إيجار)","الترفيه",{"v":30,"d":"ر.س.‏ 30"},{"v":20,"d":"ر.س.‏ 20"},{"$f":"تفاصيل_الموازنة[[#This Row],[التكلفة المتوقعة]]-تفاصيل_الموازنة[[#This Row],[التكلفة الفعلية]]","v":{"v":10,"d":"ر.س.‏ 10"}},{"$f":"تفاصيل_الموازنة[[#This Row],[التكلفة الفعلية]]","v":{"v":20,"d":"ر.س.‏ 20"}}]
[null,"الطعام خارج المنزل","الطعام",{"v":1000,"d":"ر.س.‏ 1,000"},{"v":1200,"d":"ر.س.‏ 1,200"},{"$f":"تفاصيل_الموازنة[[#This Row],[التكلفة المتوقعة]]-تفاصيل_الموازنة[[#This Row],[التكلفة الفعلية]]","v":{"v":-200,"d":"ر.س.‏ 200-"}},{"$f":"تفاصيل_الموازنة[[#This Row],[التكلفة الفعلية]]","v":{"v":1200,"d":"ر.س.‏ 1,200"}}]
[null,"البقالة","الطعام",{"v":100,"d":"ر.س.‏ 100"},{"v":120,"d":"ر.س.‏ 120"},{"$f":"تفاصيل_الموازنة[[#This Row],[التكلفة المتوقعة]]-تفاصيل_الموازنة[[#This Row],[التكلفة الفعلية]]","v":{"v":-20,"d":"ر.س.‏ 20-"}},{"$f":"تفاصيل_الموازنة[[#This Row],[التكلفة الفعلية]]","v":{"v":120,"d":"ر.س.‏ 120"}}]
[null,"عمل خيري 1","هدايا وأعمال خيرية",{"v":75,"d":"ر.س.‏ 75"},{"v":100,"d":"ر.س.‏ 100"},{"$f":"تفاصيل_الموازنة[[#This Row],[التكلفة المتوقعة]]-تفاصيل_الموازنة[[#This Row],[التكلفة الفعلية]]","v":{"v":-25,"d":"ر.س.‏ 25-"}},{"$f":"تفاصيل_الموازنة[[#This Row],[التكلفة الفعلية]]","v":{"v":100,"d":"ر.س.‏ 100"}}]
[null,"عمل خيري 2","هدايا وأعمال خيرية",{"v":25,"d":"ر.س.‏ 25"},{"v":25,"d":"ر.س.‏ 25"},{"$f":"تفاصيل_الموازنة[[#This Row],[التكلفة المتوقعة]]-تفاصيل_الموازنة[[#This Row],[التكلفة الفعلية]]","v":{"v":0,"d":"ر.س.‏ 0"}},{"$f":"تفاصيل_الموازنة[[#This Row],[التكلفة الفعلية]]","v":{"v":25,"d":"ر.س.‏ 25"}}]
[null,"هدية 1","هدايا وأعمال خيرية",null,null,{"$f":"تفاصيل_الموازنة[[#This Row],[التكلفة المتوقعة]]-تفاصيل_الموازنة[[#This Row],[التكلفة الفعلية]]","v":{"v":0,"d":"ر.س.‏ 0"}},{"$f":"تفاصيل_الموازنة[[#This Row],[التكلفة الفعلية]]","v":{"v":0,"d":"ر.س.‏ 0"}}]
[null,"هدية 2","هدايا وأعمال خيرية",null,null,{"$f":"تفاصيل_الموازنة[[#This Row],[التكلفة المتوقعة]]-تفاصيل_الموازنة[[#This Row],[التكلفة الفعلية]]","v":{"v":0,"d":"ر.س.‏ 0"}},{"$f":"تفاصيل_الموازنة[[#This Row],[التكلفة الفعلية]]","v":{"v":0,"d":"ر.س.‏ 0"}}]
[null,"الكبل/القمر الصناعي","السكن",{"v":100,"d":"ر.س.‏ 100"},{"v":100,"d":"ر.س.‏ 100"},{"$f":"تفاصيل_الموازنة[[#This Row],[التكلفة المتوقعة]]-تفاصيل_الموازنة[[#This Row],[التكلفة الفعلية]]","v":{"v":0,"d":"ر.س.‏ 0"}},{"$f":"تفاصيل_الموازنة[[#This Row],[التكلفة الفعلية]]","v":{"v":100,"d":"ر.س.‏ 100"}}]
[null,"الكهرباء","السكن",{"v":45,"d":"ر.س.‏ 45"},{"v":50,"d":"ر.س.‏ 50"},{"$f":"تفاصيل_الموازنة[[#This Row],[التكلفة المتوقعة]]-تفاصيل_الموازنة[[#This Row],[التكلفة الفعلية]]","v":{"v":-5,"d":"ر.س.‏ 5-"}},{"$f":"تفاصيل_الموازنة[[#This Row],[التكلفة الفعلية]]","v":{"v":50,"d":"ر.س.‏ 50"}}]
[null,"الغاز","السكن",{"v":300,"d":"ر.س.‏ 300"},{"v":400,"d":"ر.س.‏ 400"},{"$f":"تفاصيل_الموازنة[[#This Row],[التكلفة المتوقعة]]-تفاصيل_الموازنة[[#This Row],[التكلفة الفعلية]]","v":{"v":-100,"d":"ر.س.‏ 100-"}},{"$f":"تفاصيل_الموازنة[[#This Row],[التكلفة الفعلية]]","v":{"v":400,"d":"ر.س.‏ 400"}}]
[null,"خدمة تنظيف المنزل","السكن",{"v":200,"d":"ر.س.‏ 200"},null,{"$f":"تفاصيل_الموازنة[[#This Row],[التكلفة المتوقعة]]-تفاصيل_الموازنة[[#This Row],[التكلفة الفعلية]]","v":{"v":200,"d":"ر.س.‏ 200"}},{"$f":"تفاصيل_الموازنة[[#This Row],[التكلفة الفعلية]]","v":{"v":0,"d":"ر.س.‏ 0"}}]
[null,"الصيانة","السكن",{"v":200,"d":"ر.س.‏ 200"},{"v":150,"d":"ر.س.‏ 150"},{"$f":"تفاصيل_الموازنة[[#This Row],[التكلفة المتوقعة]]-تفاصيل_الموازنة[[#This Row],[التكلفة الفعلية]]","v":{"v":50,"d":"ر.س.‏ 50"}},{"$f":"تفاصيل_الموازنة[[#This Row],[التكلفة الفعلية]]","v":{"v":150,"d":"ر.س.‏ 150"}}]
[null,"قسط الرهن أو الإيجار","السكن",{"v":1700,"d":"ر.س.‏ 1,700"},{"v":1700,"d":"ر.س.‏ 1,700"},{"$f":"تفاصيل_الموازنة[[#This Row],[التكلفة المتوقعة]]-تفاصيل_الموازنة[[#This Row],[التكلفة الفعلية]]","v":{"v":0,"d":"ر.س.‏ 0"}},{"$f":"تفاصيل_الموازنة[[#This Row],[التكلفة الفعلية]]","v":{"v":1700,"d":"ر.س.‏ 1,700"}}]
[null,"الغاز الطبيعي/النفط","السكن",null,null,{"$f":"تفاصيل_الموازنة[[#This Row],[التكلفة المتوقعة]]-تفاصيل_الموازنة[[#This Row],[التكلفة الفعلية]]","v":{"v":0,"d":"ر.س.‏ 0"}},{"$f":"تفاصيل_الموازنة[[#This Row],[التكلفة الفعلية]]","v":{"v":0,"d":"ر.س.‏ 0"}}]
[null,"خدمة اتصال/إنترنت","السكن",{"v":100,"d":"ر.س.‏ 100"},{"v":100,"d":"ر.س.‏ 100"},{"$f":"تفاصيل_الموازنة[[#This Row],[التكلفة المتوقعة]]-تفاصيل_الموازنة[[#This Row],[التكلفة الفعلية]]","v":{"v":0,"d":"ر.س.‏ 0"}},{"$f":"تفاصيل_الموازنة[[#This Row],[التكلفة الفعلية]]","v":{"v":100,"d":"ر.س.‏ 100"}}]
[null,"الهاتف (خلوي)","السكن",{"v":60,"d":"ر.س.‏ 60"},{"v":60,"d":"ر.س.‏ 60"},{"$f":"تفاصيل_الموازنة[[#This Row],[التكلفة المتوقعة]]-تفاصيل_الموازنة[[#This Row],[التكلفة الفعلية]]","v":{"v":0,"d":"ر.س.‏ 0"}},{"$f":"تفاصيل_الموازنة[[#This Row],[التكلفة الفعلية]]","v":{"v":60,"d":"ر.س.‏ 60"}}]
[null,"الهاتف (منزلي)","السكن",{"v":35,"d":"ر.س.‏ 35"},{"v":39,"d":"ر.س.‏ 39"},{"$f":"تفاصيل_الموازنة[[#This Row],[التكلفة المتوقعة]]-تفاصيل_الموازنة[[#This Row],[التكلفة الفعلية]]","v":{"v":-4,"d":"ر.س.‏ 4-"}},{"$f":"تفاصيل_الموازنة[[#This Row],[التكلفة الفعلية]]","v":{"v":39,"d":"ر.س.‏ 39"}}]
[null,"المستلزمات","السكن",{"v":40,"d":"ر.س.‏ 40"},{"v":55,"d":"ر.س.‏ 55"},{"$f":"تفاصيل_الموازنة[[#This Row],[التكلفة المتوقعة]]-تفاصيل_الموازنة[[#This Row],[التكلفة الفعلية]]","v":{"v":-15,"d":"ر.س.‏ 15-"}},{"$f":"تفاصيل_الموازنة[[#This Row],[التكلفة الفعلية]]","v":{"v":55,"d":"ر.س.‏ 55"}}]
[null,"إزالة المهملات وإعادة التدوير","السكن",{"v":25,"d":"ر.س.‏ 25"},{"v":22,"d":"ر.س.‏ 22"},{"$f":"تفاصيل_الموازنة[[#This Row],[التكلفة المتوقعة]]-تفاصيل_الموازنة[[#This Row],[التكلفة الفعلية]]","v":{"v":3,"d":"ر.س.‏ 3"}},{"$f":"تفاصيل_الموازنة[[#This Row],[التكلفة الفعلية]]","v":{"v":22,"d":"ر.س.‏ 22"}}]
[null,"المياه والصرف","السكن",{"v":25,"d":"ر.س.‏ 25"},{"v":26,"d":"ر.س.‏ 26"},{"$f":"تفاصيل_الموازنة[[#This Row],[التكلفة المتوقعة]]-تفاصيل_الموازنة[[#This Row],[التكلفة الفعلية]]","v":{"v":-1,"d":"ر.س.‏ 1-"}},{"$f":"تفاصيل_الموازنة[[#This Row],[التكلفة الفعلية]]","v":{"v":26,"d":"ر.س.‏ 26"}}]
[null,"الصحة","التأمين",{"v":400,"d":"ر.س.‏ 400"},{"v":400,"d":"ر.س.‏ 400"},{"$f":"تفاصيل_الموازنة[[#This Row],[التكلفة المتوقعة]]-تفاصيل_الموازنة[[#This Row],[التكلفة الفعلية]]","v":{"v":0,"d":"ر.س.‏ 0"}},{"$f":"تفاصيل_الموازنة[[#This Row],[التكلفة الفعلية]]","v":{"v":400,"d":"ر.س.‏ 400"}}]
[null,"المنزل","التأمين",{"v":400,"d":"ر.س.‏ 400"},{"v":400,"d":"ر.س.‏ 400"},{"$f":"تفاصيل_الموازنة[[#This Row],[التكلفة المتوقعة]]-تفاصيل_الموازنة[[#This Row],[التكلفة الفعلية]]","v":{"v":0,"d":"ر.س.‏ 0"}},{"$f":"تفاصيل_الموازنة[[#This Row],[التكلفة الفعلية]]","v":{"v":400,"d":"ر.س.‏ 400"}}]
[null,"حياة","التأمين",{"v":100,"d":"ر.س.‏ 100"},{"v":100,"d":"ر.س.‏ 100"},{"$f":"تفاصيل_الموازنة[[#This Row],[التكلفة المتوقعة]]-تفاصيل_الموازنة[[#This Row],[التكلفة الفعلية]]","v":{"v":0,"d":"ر.س.‏ 0"}},{"$f":"تفاصيل_الموازنة[[#This Row],[التكلفة الفعلية]]","v":{"v":100,"d":"ر.س.‏ 100"}}]
[null,"بطاقة الائتمان 1","القروض",{"v":200,"d":"ر.س.‏ 200"},{"v":200,"d":"ر.س.‏ 200"},{"$f":"تفاصيل_الموازنة[[#This Row],[التكلفة المتوقعة]]-تفاصيل_الموازنة[[#This Row],[التكلفة الفعلية]]","v":{"v":0,"d":"ر.س.‏ 0"}},{"$f":"تفاصيل_الموازنة[[#This Row],[التكلفة الفعلية]]","v":{"v":200,"d":"ر.س.‏ 200"}}]
[null,"بطاقة الائتمان 2","القروض",null,null,{"$f":"تفاصيل_الموازنة[[#This Row],[التكلفة المتوقعة]]-تفاصيل_الموازنة[[#This Row],[التكلفة الفعلية]]","v":{"v":0,"d":"ر.س.‏ 0"}},{"$f":"تفاصيل_الموازنة[[#This Row],[التكلفة الفعلية]]","v":{"v":0,"d":"ر.س.‏ 0"}}]
[null,"بطاقة الائتمان 3","القروض",null,null,{"$f":"تفاصيل_الموازنة[[#This Row],[التكلفة المتوقعة]]-تفاصيل_الموازنة[[#This Row],[التكلفة الفعلية]]","v":{"v":0,"d":"ر.س.‏ 0"}},{"$f":"تفاصيل_الموازنة[[#This Row],[التكلفة الفعلية]]","v":{"v":0,"d":"ر.س.‏ 0"}}]
[null,"شخصي","القروض",null,null,{"$f":"تفاصيل_الموازنة[[#This Row],[التكلفة المتوقعة]]-تفاصيل_الموازنة[[#This Row],[التكلفة الفعلية]]","v":{"v":0,"d":"ر.س.‏ 0"}},{"$f":"تفاصيل_الموازنة[[#This Row],[التكلفة الفعلية]]","v":{"v":0,"d":"ر.س.‏ 0"}}]
[null,"طالب","القروض",null,null,{"$f":"تفاصيل_الموازنة[[#This Row],[التكلفة المتوقعة]]-تفاصيل_الموازنة[[#This Row],[التكلفة الفعلية]]","v":{"v":0,"d":"ر.س.‏ 0"}},{"$f":"تفاصيل_الموازنة[[#This Row],[التكلفة الفعلية]]","v":{"v":0,"d":"ر.س.‏ 0"}}]
[null,"الملابس","الرعاية الشخصية",{"v":150,"d":"ر.س.‏ 150"},{"v":140,"d":"ر.س.‏ 140"},{"$f":"تفاصيل_الموازنة[[#This Row],[التكلفة المتوقعة]]-تفاصيل_الموازنة[[#This Row],[التكلفة الفعلية]]","v":{"v":10,"d":"ر.س.‏ 10"}},{"$f":"تفاصيل_الموازنة[[#This Row],[التكلفة الفعلية]]","v":{"v":140,"d":"ر.س.‏ 140"}}]
[null,"التنظيف الجاف","الرعاية الشخصية",null,null,{"$f":"تفاصيل_الموازنة[[#This Row],[التكلفة المتوقعة]]-تفاصيل_الموازنة[[#This Row],[التكلفة الفعلية]]","v":{"v":0,"d":"ر.س.‏ 0"}},{"$f":"تفاصيل_الموازنة[[#This Row],[التكلفة الفعلية]]","v":{"v":0,"d":"ر.س.‏ 0"}}]
[null,"الشعر/الأظافر","الرعاية الشخصية",null,null,{"$f":"تفاصيل_الموازنة[[#This Row],[التكلفة المتوقعة]]-تفاصيل_الموازنة[[#This Row],[التكلفة الفعلية]]","v":{"v":0,"d":"ر.س.‏ 0"}},{"$f":"تفاصيل_الموازنة[[#This Row],[التكلفة الفعلية]]","v":{"v":0,"d":"ر.س.‏ 0"}}]
[null,"النادي الصحي","الرعاية الشخصية",null,null,{"$f":"تفاصيل_الموازنة[[#This Row],[التكلفة المتوقعة]]-تفاصيل_الموازنة[[#This Row],[التكلفة الفعلية]]","v":{"v":0,"d":"ر.س.‏ 0"}},{"$f":"تفاصيل_الموازنة[[#This Row],[التكلفة الفعلية]]","v":{"v":0,"d":"ر.س.‏ 0"}}]
[null,"لوازم طبية","الرعاية الشخصية",null,null,{"$f":"تفاصيل_الموازنة[[#This Row],[التكلفة المتوقعة]]-تفاصيل_الموازنة[[#This Row],[التكلفة الفعلية]]","v":{"v":0,"d":"ر.س.‏ 0"}},{"$f":"تفاصيل_الموازنة[[#This Row],[التكلفة الفعلية]]","v":{"v":0,"d":"ر.س.‏ 0"}}]
[null,"الطعام","الحيوانات الأليفة",{"v":150,"d":"ر.س.‏ 150"},{"v":75,"d":"ر.س.‏ 75"},{"$f":"تفاصيل_الموازنة[[#This Row],[التكلفة المتوقعة]]-تفاصيل_الموازنة[[#This Row],[التكلفة الفعلية]]","v":{"v":75,"d":"ر.س.‏ 75"}},{"$f":"تفاصيل_الموازنة[[#This Row],[التكلفة الفعلية]]","v":{"v":75,"d":"ر.س.‏ 75"}}]
[null,"التدليل","الحيوانات الأليفة",{"v":20,"d":"ر.س.‏ 20"},{"v":25,"d":"ر.س.‏ 25"},{"$f":"تفاصيل_الموازنة[[#This Row],[التكلفة المتوقعة]]-تفاصيل_الموازنة[[#This Row],[التكلفة الفعلية]]","v":{"v":-5,"d":"ر.س.‏ 5-"}},{"$f":"تفاصيل_الموازنة[[#This Row],[التكلفة الفعلية]]","v":{"v":25,"d":"ر.س.‏ 25"}}]
[null,"لوازم طبية","الحيوانات الأليفة",null,null,{"$f":"تفاصيل_الموازنة[[#This Row],[التكلفة المتوقعة]]-تفاصيل_الموازنة[[#This Row],[التكلفة الفعلية]]","v":{"v":0,"d":"ر.س.‏ 0"}},{"$f":"تفاصيل_الموازنة[[#This Row],[التكلفة الفعلية]]","v":{"v":0,"d":"ر.س.‏ 0"}}]
[null,"الدمى","الحيوانات الأليفة",null,null,{"$f":"تفاصيل_الموازنة[[#This Row],[التكلفة المتوقعة]]-تفاصيل_الموازنة[[#This Row],[التكلفة الفعلية]]","v":{"v":0,"d":"ر.س.‏ 0"}},{"$f":"تفاصيل_الموازنة[[#This Row],[التكلفة الفعلية]]","v":{"v":0,"d":"ر.س.‏ 0"}}]
[null,"حساب الاستثمار","المدخرات أو الاستثمارات",{"v":200,"d":"ر.س.‏ 200"},{"v":200,"d":"ر.س.‏ 200"},{"$f":"تفاصيل_الموازنة[[#This Row],[التكلفة المتوقعة]]-تفاصيل_الموازنة[[#This Row],[التكلفة الفعلية]]","v":{"v":0,"d":"ر.س.‏ 0"}},{"$f":"تفاصيل_الموازنة[[#This Row],[التكلفة الفعلية]]","v":{"v":200,"d":"ر.س.‏ 200"}}]
[null,"حساب التقاعد","المدخرات أو الاستثمارات",null,null,{"$f":"تفاصيل_الموازنة[[#This Row],[التكلفة المتوقعة]]-تفاصيل_الموازنة[[#This Row],[التكلفة الفعلية]]","v":{"v":0,"d":"ر.س.‏ 0"}},{"$f":"تفاصيل_الموازنة[[#This Row],[التكلفة الفعلية]]","v":{"v":0,"d":"ر.س.‏ 0"}}]
[null,"فيدرالي","الضرائب",{"v":300,"d":"ر.س.‏ 300"},{"v":300,"d":"ر.س.‏ 300"},{"$f":"تفاصيل_الموازنة[[#This Row],[التكلفة المتوقعة]]-تفاصيل_الموازنة[[#This Row],[التكلفة الفعلية]]","v":{"v":0,"d":"ر.س.‏ 0"}},{"$f":"تفاصيل_الموازنة[[#This Row],[التكلفة الفعلية]]","v":{"v":300,"d":"ر.س.‏ 300"}}]
[null,"محلي","الضرائب",null,null,{"$f":"تفاصيل_الموازنة[[#This Row],[التكلفة المتوقعة]]-تفاصيل_الموازنة[[#This Row],[التكلفة الفعلية]]","v":{"v":0,"d":"ر.س.‏ 0"}},{"$f":"تفاصيل_الموازنة[[#This Row],[التكلفة الفعلية]]","v":{"v":0,"d":"ر.س.‏ 0"}}]
[null,"الولاية","الضرائب",null,null,{"$f":"تفاصيل_الموازنة[[#This Row],[التكلفة المتوقعة]]-تفاصيل_الموازنة[[#This Row],[التكلفة الفعلية]]","v":{"v":0,"d":"ر.س.‏ 0"}},{"$f":"تفاصيل_الموازنة[[#This Row],[التكلفة الفعلية]]","v":{"v":0,"d":"ر.س.‏ 0"}}]
[null,"أجرة الحافلة/التاكسي","وسائل النقل",{"v":100,"d":"ر.س.‏ 100"},{"v":150,"d":"ر.س.‏ 150"},{"$f":"تفاصيل_الموازنة[[#This Row],[التكلفة المتوقعة]]-تفاصيل_الموازنة[[#This Row],[التكلفة الفعلية]]","v":{"v":-50,"d":"ر.س.‏ 50-"}},{"$f":"تفاصيل_الموازنة[[#This Row],[التكلفة الفعلية]]","v":{"v":150,"d":"ر.س.‏ 150"}}]
[null,"الوقود","وسائل النقل",{"v":450,"d":"ر.س.‏ 450"},{"v":400,"d":"ر.س.‏ 400"},{"$f":"تفاصيل_الموازنة[[#This Row],[التكلفة المتوقعة]]-تفاصيل_الموازنة[[#This Row],[التكلفة الفعلية]]","v":{"v":50,"d":"ر.س.‏ 50"}},{"$f":"تفاصيل_الموازنة[[#This Row],[التكلفة الفعلية]]","v":{"v":400,"d":"ر.س.‏ 400"}}]
[null,"التأمين","وسائل النقل",{"v":300,"d":"ر.س.‏ 300"},{"v":300,"d":"ر.س.‏ 300"},{"$f":"تفاصيل_الموازنة[[#This Row],[التكلفة المتوقعة]]-تفاصيل_الموازنة[[#This Row],[التكلفة الفعلية]]","v":{"v":0,"d":"ر.س.‏ 0"}},{"$f":"تفاصيل_الموازنة[[#This Row],[التكلفة الفعلية]]","v":{"v":300,"d":"ر.س.‏ 300"}}]
[null,"الترخيص ","وسائل النقل",{"v":25,"d":"ر.س.‏ 25"},{"v":25,"d":"ر.س.‏ 25"},{"$f":"تفاصيل_الموازنة[[#This Row],[التكلفة المتوقعة]]-تفاصيل_الموازنة[[#This Row],[التكلفة الفعلية]]","v":{"v":0,"d":"ر.س.‏ 0"}},{"$f":"تفاصيل_الموازنة[[#This Row],[التكلفة الفعلية]]","v":{"v":25,"d":"ر.س.‏ 25"}}]
[null,"الصيانة","وسائل النقل",{"v":100,"d":"ر.س.‏ 100"},{"v":50,"d":"ر.س.‏ 50"},{"$f":"تفاصيل_الموازنة[[#This Row],[التكلفة المتوقعة]]-تفاصيل_الموازنة[[#This Row],[التكلفة الفعلية]]","v":{"v":50,"d":"ر.س.‏ 50"}},{"$f":"تفاصيل_الموازنة[[#This Row],[التكلفة الفعلية]]","v":{"v":50,"d":"ر.س.‏ 50"}}]
[null,"رسوم الانتظار","وسائل النقل",null,null,{"$f":"تفاصيل_الموازنة[[#This Row],[التكلفة المتوقعة]]-تفاصيل_الموازنة[[#This Row],[التكلفة الفعلية]]","v":{"v":0,"d":"ر.س.‏ 0"}},{"$f":"تفاصيل_الموازنة[[#This Row],[التكلفة الفعلية]]","v":{"v":0,"d":"ر.س.‏ 0"}}]
[null,"مدفوعات السيارة","وسائل النقل",{"v":450,"d":"ر.س.‏ 450"},{"v":450,"d":"ر.س.‏ 450"},{"$f":"تفاصيل_الموازنة[[#This Row],[التكلفة المتوقعة]]-تفاصيل_الموازنة[[#This Row],[التكلفة الفعلية]]","v":{"v":0,"d":"ر.س.‏ 0"}},{"$f":"تفاصيل_الموازنة[[#This Row],[التكلفة الفعلية]]","v":{"v":450,"d":"ر.س.‏ 450"}}]
[null,"الإجمالي",null,{"$f":"SUBTOTAL(109,تفاصيل_الموازنة[التكلفة المتوقعة])","v":{"v":7915,"d":"ر.س.‏ 7,915"}},{"$f":"SUBTOTAL(109,تفاصيل_الموازنة[التكلفة الفعلية])","v":{"v":7860,"d":"ر.س.‏ 7,860"}},{"$f":"SUBTOTAL(109,تفاصيل_الموازنة[الفرق])","v":{"v":55,"d":"ر.س.‏ 55"}}]

{"sheet":"البيانات الإضافية","index":2,"n_rows":15,"n_cols":5,"rows_kept":15}
[null,"جدول PivotTable للمخطط \"نظرة عامة على الموازنة\"",null,null,"قائمة البحث لفئة تفاصيل الموازنة"]
[null,"الفئة","التكلفة",null,"البحث في فئات الموازنة"]
[null,"الأطفال",140,null,"الأطفال"]
[null,"التأمين",900,null,"التأمين"]
[null,"الترفيه",358,null,"الترفيه"]
[null,"الحيوانات الأليفة",100,null,"الحيوانات الأليفة"]
[null,"الرعاية الشخصية",140,null,"الرعاية الشخصية"]
[null,"السكن",2702,null,"السكن"]
[null,"الضرائب",300,null,"الضرائب"]
[null,"الطعام",1320,null,"الطعام"]
[null,"القروض",200,null,"القروض"]
[null,"المدخرات أو الاستثمارات",200,null,"المدخرات أو الاستثمارات"]
[null,"هدايا وأعمال خيرية",125,null,"هدايا وأعمال خيرية"]
[null,"وسائل النقل",1375,null,"وسائل النقل"]
[null,"الإجمالي الكلي",7860]